Cogmind - Beta 16 @@@ ROGUE MODE // 2025.11.12 @ 16:21:12 Player: Dex'o Result: Self-destructed Performance ------------- Evolutions (1) 500 Regions Visited (3) 600 Robots Destroyed (19) 95 Value Destroyed (478) 478 Prototype IDs (2) 40 Alien Tech Used (0) 0 Bonus (0) 0 TOTAL SCORE: 1713 Bonus ------- None Cogmind --------- Core Integrity 137/400 Matter 300/300 Energy 100/100 System Corruption 0% Temperature Cool (0) Movement Core (400) Ox7 Location -9/Storage Parts ------- > --- POWER (1) -------- (None) > --- PROPULSION (2) --- (None) > --- UTILITY (4) ------ Large Storage Unit Visual Processing Unit Signal Interpreter ECM Suite > --- WEAPON (2) ------- (None) > --- INVENTORY (15) --- Light Ion Engine Light Treads Light Treads Flight Unit Mining Laser Peak State ------------ > --- POWER ------------ Improved Ion Engine > --- PROPULSION ------- Wheel Wheel > --- UTILITY ---------- Large Storage Unit Signal Interpreter Seismic Detector Light Armor Plating > --- WEAPON ----------- Assault Rifle Heavy Assault Rifle > --- INVENTORY -------- Light Ion Engine Light Ion Engine Light Ion Engine Light Treads Light Treads Light Treads Wheel Flight Unit Flight Unit Flight Unit Medium Laser Light Assault Rifle Mining Laser [Rating: 12] Favorites ----------- Power Light Ion Engine Engine Light Ion Engine Propulsion Wheel Treads Light Treads Wheel Wheel Utility Large Storage Unit Device Seismic Detector Storage Large Storage Unit Processor Signal Interpreter Protection Light Armor Plating Weapon Light Assault Rifle Energy Gun Medium Laser Ballistic Gun Light Assault Rifle Build | -11 -10 -9 -9 ------- Run | Yrd Mat Mat Sto Slots Evolved 2 | . . 2 . Power . | . . . . Propulsion . | . . . . Utility 2 | . . 2 . Weapon . | . . . . Parts Attached 23 | 7 3 4 9 Power 4 | 1 1 1 1 Engine 4 | 1 1 1 1 Core . | . . . . Reactor . | . . . . Propulsion 7 | 2 . . 5 Treads 5 | . . . 5 Leg . | . . . . Wheel 2 | 2 . . . Hover . | . . . . Flight . | . . . . Utility 7 | 2 1 2 2 Device 2 | 1 . . 1 Storage 2 | 1 1 . . Processor 2 | . . 1 1 Hackware . | . . . . Protection 1 | . . 1 . Artifact . | . . . . Weapon 5 | 2 1 1 1 Energy Gun 2 | 1 . . 1 Energy Cannon . | . . . . Ballistic Gun 3 | 1 1 1 . Ballistic Cannon . | . . . . Launcher . | . . . . Special Weapon . | . . . . Impact Weapon . | . . . . Slashing Weapon . | . . . . Piercing Weapon . | . . . . Special Melee Weapon . | . . . . Unidentified Prototypes . | . . . . Parts Lost 13 | . . . 13 Power 1 | . . . 1 Propulsion 5 | . . . 5 Utility 2 | . . . 2 Weapon 5 | . . . 5 Highest Loss Streak 6 | . . . 6 To Critical Strikes . | . . . . Average Backups 8 | 4 8 12 7 Power 1 | . 1 2 1 Propulsion 3 | 2 3 6 3 Utility 1 | . 2 1 . Weapon 1 | 1 2 2 1 Tool/Special . | . . . . Unused Backups 8 | . . 1 7 Power 1 | . . . 1 Propulsion 5 | . . . 5 Utility 1 | . . 1 . Weapon 1 | . . . 1 Tool/Special . | . . . . Average Slot Usage (%) 90 | . 97 91 85 Engine 10 | . 13 11 8 Treads 9 | . . . 16 Wheel 13 | . 28 22 2 Device 10 | . 14 11 9 Storage 11 | . 13 11 11 Processor 10 | . . 11 16 Protection 1 | . . 2 1 Energy Gun 4 | . . . 8 Ballistic Gun 17 | . 26 22 11 Peak Build Rating 12 | 7 8 12 12 Average Rating 8 | 4 7 9 9 On Entrance 6 | . 7 8 12 Avg Prop Armor Cover (%) 18 | . 18 . . Naked Turns . | . . . . Heaviest Build 36 | 13 27 36 36 Greatest Support 40 | 20 20 20 40 Greatest Overweight (x) 2 | 1 2 1 1 Average Overweight (x) . | . . 1 . Largest Inventory Capacity 15 | 8 15 15 15 Average Capacity 13 | 7 13 15 15 Most Carried 14 | 7 13 14 12 Average Carried 8 | 5 8 12 7 Final Capacity 15 | 8 15 15 15 Final Carried 13 | 6 13 12 5 Class Distribution -------------------- 76% | Mutant 23% | Scavenger-Mutant Dominant Class ---------------- Mutant | -10/Materials Mutant | -9/Materials Mutant | -9/Storage Resources | -11 -10 -9 -9 ----------- Run | Yrd Mat Mat Sto Matter Collected 624 | 248 105 54 217 Remotely . | . . . . Salvage Created 637 | 14 108 54 461 Parts 50 | 5 10 5 30 Haulers Intercepted . | . . . . Recyclers Shooed 1 | . . . 1 Parts Field Recycled . | . . . . Retrieved Matter . | . . . . Parts Self-Destructed . | . . . . Prevented . | . . . . Parts Restored . | . . . . Kills | -11 -10 -9 -9 ------- Run | Yrd Mat Mat Sto Combat Hostiles Destroyed 17 | . 5 1 11 Guns 17 | . 5 1 11 Classes Destroyed 5 | 1 2 1 1 Tunneler 1 | 1 . . . Recycler 1 | . . . 1 Swarmer 8 | . 3 . 5 Grunt 3 | . 2 . 1 Sentry 6 | . . 1 5 Best Kill Streak 6 | 1 3 1 6 Combat Bots Only 6 | . 3 1 6 Max Kills in Single Turn 2 | 1 2 1 1 Gunslinging 1 | . 1 . . Exploded . | . . . . Melee . | . . . . Uniques/NPCs Destroyed . | . . . . Combat | -11 -10 -9 -9 -------- Run | Yrd Mat Mat Sto Hostile Shots Fired 207 | . 16 10 181 Missed 62 | . 2 4 56 Hits 145 | . 14 6 125 Projectile 145 | . 14 6 125 Critical Strikes 7 | . . . 7 Damage Taken 1706 | . 134 90 1482 Core 337 | . 74 14 249 Absorbed by Shields . | . . . . Core Remaining (%) 85 | 100 70 . . Volleys Fired 62 | 1 10 5 46 Largest 2 | 2 2 2 2 Hottest 106 | 70 40 40 106 Shots Fired 119 | 2 20 10 87 Gun 119 | 2 20 10 87 Cannon . | . . . . Launcher . | . . . . Special . | . . . . Kinetic 86 | 1 20 10 55 Thermal 33 | 1 . . 32 Explosive . | . . . . Electromagnetic . | . . . . Robot Hit Streak 15 | 1 8 11 15 Robot Miss Streak 3 | . 2 . 3 Penetration Max . | . . . . Secondary Targets 4 | . 1 . 3 Max Gunslinging Chain 1 | . 1 . 1 Shots Hit Robots 87 | 1 11 10 65 Core Hits 33 | 1 7 3 22 Critical Kills . | . . . . Critical Parts Destroyed . | . . . . Critical Strikes 3 | . . . 3 Burn 3 | . . . 3 Melee Attacks . | . . . . Impact . | . . . . Slashing . | . . . . Piercing . | . . . . Sneak Attacks . | . . . . Combat Hostiles . | . . . . Follow-up Attacks . | . . . . Damage Inflicted 1069 | 12 129 97 831 Guns 1066 | 12 129 97 828 Cannons . | . . . . Explosions . | . . . . Melee . | . . . . Ramming 3 | . . . 3 Kinetic 770 | 12 129 97 532 Thermal 296 | . . . 296 Explosive . | . . . . Electromagnetic . | . . . . Impact . | . . . . Slashing . | . . . . Piercing . | . . . . Highest Corruption . | . . . . Average Corruption . | . . . . Corruption Purged . | . . . . Corruption Blocked . | . . . . Overload Shots . | . . . . Overflow Damage . | . . . . Projectiles . | . . . . Explosions . | . . . . Melee . | . . . . Knockbacks . | . . . . Impact . | . . . . Kinetic . | . . . . Secondary . | . . . . Self-Inflicted Damage . | . . . . Shots . | . . . . Rammed 2 | . . . 2 Targets Rammed 2 | . . . 2 Kicked . | . . . . Crushed . | . . . . Highest Temperature 193 | 9 6 . 193 Average Temperature 46 | 6 6 . 49 Received Heat Transfer 555 | . 36 36 483 Siege Activations . | . . . . Martial Activations . | . . . . Shielding Activations . | . . . . Robots Disrupted . | . . . . Combat Hostiles . | . . . . Robots Corrupted . | . . . . Combat Hostiles . | . . . . Parts Fried . | . . . . Impact Corruptions . | . . . . Robots Melted . | . . . . Combat Hostiles . | . . . . Parts Melted 6 | . . . 6 Heat Transferred 1036 | . . . 1036 Parts Sabotaged . | . . . . Parts Stolen . | . . . . Parts Stripped . | . . . . Power Chain Reactions . | . . . . Alert | -11 -10 -9 -9 ------- Run | Yrd Mat Mat Sto Maximum Alert Level . | . . . . Low Security (%) 100 | 100 100 100 100 Level 1 . | . . . . Level 2 . | . . . . Level 3 . | . . . . Level 4 . | . . . . Level 5 . | . . . . High Security . | . . . . Max Security . | . . . . Peak Influence 95 | 5 90 43 95 Initial 33 | . . 33 13 Average 26 | 1 18 31 35 Influence Increases 494 | 5 148 30 311 Destroy 0b10 Robot/C 340 | . 100 20 220 Destroy 0b10 Robot/NC 10 | 5 . . 5 Destroy Leader 100 | . 20 10 70 Successful Hack 28 | . 28 . . Destroy Structure 1 | . . . 1 Lose Combat Pursuer 15 | . . . 15 Influence Decreases 456 | 5 68 77 306 Entered New Map 67 | . . 47 20 Time Decay 289 | 5 68 30 186 Lost Part 90 | . . . 90 Lost Ally 10 | . . . 10 Squads Dispatched 1 | . 1 . . Investigation . | . . . . Extermination . | . . . . Reinforcement 1 | . 1 . . Assault . | . . . . Garrison . | . . . . Intercept . | . . . . Searches Triggered . | . . . . Construction Impeded . | . . . . Haulers Reinforced . | . . . . Active Scanning Responses . | . . . . Cargo Convoy Interrupts . | . . . . Stealth | -11 -10 -9 -9 --------- Run | Yrd Mat Mat Sto Distress Signals 2 | . . . 2 Communications Jammed . | . . . . Distress Signals . | . . . . Times Spotted 26 | . 7 1 18 Peak Tracking Total 10 | . 3 1 10 Tactical Retreats 1 | . . . 1 Traps | -11 -10 -9 -9 ------- Run | Yrd Mat Mat Sto Traps Triggered . | . . . . Indirectly . | . . . . Trap Hack Attempts . | . . . . Triggered . | . . . . Disarmed . | . . . . Reprogrammed . | . . . . Reused . | . . . . Traps Extracted . | . . . . Installed . | . . . . Triggered . | . . . . Machines | -11 -10 -9 -9 ---------- Run | Yrd Mat Mat Sto Machines Disabled . | . . . . Max in Single Turn . | . . . . Machines Repaired . | . . . . Machines Dismantled . | . . . . Machines Sabotaged . | . . . . Overloaded Fab Kills . | . . . . Hacking | -11 -10 -9 -9 --------- Run | Yrd Mat Mat Sto Machines Accessed 5 | . 4 . 1 Terminals 5 | . 4 . 1 Fabricators . | . . . . Repair Stations . | . . . . Recycling Units . | . . . . Scanalyzers . | . . . . Garrison Access . | . . . . Total Hacks 11 | . 10 . 1 Successful 9 | . 8 . 1 Failed 2 | . 2 . . Catastrophic . | . . . . Database Lockouts . | . . . . Manual 9 | . 9 . . Terminals 11 | . 10 . 1 Fabricators . | . . . . Repair Stations . | . . . . Recycling Units . | . . . . Scanalyzers . | . . . . Garrison Access . | . . . . Terminal Hacks 5 | . 4 . 1 Prototype ID Bank 1 | . 1 . . Level Access Points 1 | . 1 . . Emergency Access Points 1 | . . . 1 Terminal Index 1 | . 1 . . Zone Layout 1 | . 1 . . Fabricator Hacks . | . . . . Repair Station Hacks . | . . . . Recycling Unit Hacks . | . . . . Scanalyzer . | . . . . Garrison Access Hacks . | . . . . Unauthorized Hacks 4 | . 4 . . Terminals 4 | . 4 . . Assimilate 1 | . 1 . . Botnet 3 | . 3 . . Fabricators . | . . . . Repair Stations . | . . . . Recycling Units . | . . . . Scanalyzers . | . . . . Garrison Access . | . . . . Data Cores Recovered . | . . . . Used . | . . . . Hacking Detections 2 | . 2 . . Full Trace Events . | . . . . Feedback Events . | . . . . Feedback Blocked . | . . . . Robot Schematics Acquired . | . . . . Robots Built . | . . . . Authchips . | . . . . Time . | . . . . Total Robot Build Rating . | . . . . Part Schematics Acquired . | . . . . Parts Built . | . . . . Authchips . | . . . . Time . | . . . . Total Part Build Rating . | . . . . Part Studies Acquired . | . . . . Parts Repaired . | . . . . Time . | . . . . Parts Recycled . | . . . . Recycled Matter . | . . . . Retrieved Matter . | . . . . Retrieved Components . | . . . . Parts Scanalyzed . | . . . . Part Schematics Acquired . | . . . . Parts Damaged . | . . . . Bothacking | -11 -10 -9 -9 ------------ Run | Yrd Mat Mat Sto Used RIF Installer . | . . . . Robots Hacked . | . . . . Non-combat . | . . . . Combat . | . . . . Robot Hacks Applied . | . . . . Relay Couplers Released . | . . . . Fabnet Peak Effective % . | . . . . Robots Rewired . | . . . . Allies Hacked . | . . . . Hacks Repelled . | . . . . Allies | -11 -10 -9 -9 -------- Run | Yrd Mat Mat Sto Total Allies 1 | . 1 . . Largest Group 1 | . 1 1 1 Highest-Rated Group 10 | . 10 10 10 Highest-Rated Ally 10 | . 10 10 10 Total Orders 2 | . 2 . . ROAM 1 | . 1 . . FOLLOW 1 | . 1 . . Ally Attacks . | . . . . Total Damage . | . . . . Kills . | . . . . Allies Corrupted . | . . . . Allies Melted . | . . . . Intel | -11 -10 -9 -9 ------- Run | Yrd Mat Mat Sto Active Infowar (turns) 816 | 1 280 74 461 Optics 240 | . . . 240 Seismic 643 | 1 280 74 288 ECM 8 | . . . 8 Robot Analysis Total . | . . . . Derelict Logs Recovered . | . . . . Drone Launches . | . . . . Drone Recoveries . | . . . . Exploration | -11 -10 -9 -9 ------------- Run | Yrd Mat Mat Sto Turns Passed 898 | 83 280 74 461 Spaces Moved 481 | 78 207 44 152 Core 22 | 8 14 . . Treads 137 | . . . 137 Legs . | . . . . Wheels 322 | 70 193 44 15 Hover . | . . . . Flight . | . . . . Fastest Speed 50 | 50 50 95 95 Average Speed 114 | 79 90 95 170 Slowest Speed 240 | 95 150 95 240 Overloaded Moves . | . . . . Propulsion Burnouts . | . . . . Robots Hopped . | . . . . Potential Cave-ins . | . . . . Cave-ins Triggered . | . . . . Exploration Rate (%) 17 | 3 36 3 28 Regions Visited 3 Branch Regions 1 Pre-discovered Areas . | . . . . Known Exits Taken 2 | . 1 1 . Unknown Exits Taken 1 | 1 . . . Scrap Searched . | . . . . Spaces Dug . | . . . . Terrain Destroyed . | . . . . Melee . | . . . . Projectile . | . . . . AOE . | . . . . Terrain Rammed . | . . . . Walls Destroyed . | . . . . Machines Disabled . | . . . . Actions | -11 -10 -9 -9 --------- Run | Yrd Mat Mat Sto Total 714 | 96 281 67 270 Wait 96 | . 48 7 41 Move 478 | 77 206 43 152 Hop . | . . . . Pick Up 34 | 11 10 4 9 Fast Attach 3 | 2 1 . . Attach 17 | 5 2 2 8 Detach . | . . . . Swap 8 | . 1 3 4 Drop 14 | . 3 3 8 Fire 62 | 1 10 5 46 Melee . | . . . . Ram . | . . . . Kick . | . . . . Crush 2 | . . . 2 Escape Stasis . | . . . . Rewire . | . . . . Trap . | . . . . Miscellaneous . | . . . . Route ------- -11/Scrapyard -10/Materials (discovered 3 exits: *Mat x3) -9/Materials -9/Storage History --------- Turn | Location | Event 9 | -11/Scrapyard | Discovered new exit (range 16) 84 | -11/Scrapyard | Entered Materials 241 | -10/Materials | Identified exit to Materials 304 | -10/Materials | Build established: Mutant 364 | -10/Materials | Entered another Materials area 364 | -9/Materials | Accompanied by 1 ally 364 | -9/Materials | Evolved 2 slots: Utility x2 385 | -9/Materials | Discovered new exit (range 5) 432 | -9/Materials | Identified exit to Storage 438 | -9/Materials | Entered Storage 438 | -9/Storage | Accompanied by 1 ally 515 | -9/Storage | Lost 3 parts (2n1u) 814 | -9/Storage | Core integrity fell below 50% 838 | -9/Storage | Lost 6 parts (1p2n1u2w) 899 | -9/Storage | Self-destructed Last Messages --------------- Y-45 Defender suffers critical hit (Burn). Heat Sink melted. Lgt. Treads melted. Imp. Ion Engine melted. Y-45 Defender destroyed. R-06 Scavenger collects Lgt. Treads. K-01 Serf collects debris. Acquired 20 matter. R-06 Scavenger collects Imp. Ion Engine. R-06 Scavenger destroyed. K-01 Serf collects debris. Acquired Lgt. Treads. K-01 Serf collects debris. W-16 Scout sends out distress signal. K-01 Serf collects debris. Acquired Flight Unit. K-01 Serf collects debris. R-06 Scavenger collects Com. Wheel. Beam Rifle destroyed. Lgt. Treads destroyed. Map ----- +----------------------------------------------------+ | | | ??????????????????????????????????????????????? | | ?????????????????????????????????##???????????? | | ?????????????????????????????????"""??????????? | | ?????????????????????????????????"Y"?????????## | | ?????????????????????????????####" "##???????# | | ????????????????????????????# #??????# | | ????????????????????????????# #??????# | | ????????????????????????????# ##?????# | | ????????????????????????????# """ """ #?????# | | ????????????????????#####?### """ """ #??????# | | ???????????????????##"T"### # """ """ #??????# | | ???????????????????# # ???????# | | ???????????????????# """ #?? ?????????# | | ???????????????????# """ #####+############# | | ???????????????????# """ % # | | ???????????????????# + | | ???????????????????# """ %# % | | ???????????????????# """=% # ###+#########+### | | ???????????????????# """!*=# ## ?????## | | ???????????????????#% [[ %# ## """ ????#T | | ???????????????????#######+##+## """ "??###" "# | | ???????????????????? #%% # """ T"?# * ! | | ????????????????????? # ! # ""##!!* ! | | ?????????????????????# # # """ ""?#!==! ! | | ???????????###########@ # # ???????#!!=!!! | | ???????????# # # # ???????####### | | ??????????# + # % # ?????????????? | | ???????????# [ # +% # ?????????????? | | ???????????# # # #??????????????? | | ???????????# " ""?# g# #??????????????? | | ???????????#== "R""?# # #??????????????? | | ???????????#=! """??+ # #??????????????? | | ???????????# ? # g/ #??????????????? | | ???????????###?###?###a ########??????????????? | | ?????????????????????# #?????????????????????? | | ?????????????????????# %#?????????????????????? | | ????????????????????? k?????????????????????? | | ????????????????????? a ?????????????????????? | | ?????????????????????####?????????????????????? | | ??????????????????????????????????????????????? | | ??????????????????????????????????????????????? | | ??????????????????????????????????????????????? | | ??????????????????????????????????????????????? | | ??????????????????????????????????????????????? | | ??????????????????????????????????????????????? | | ??????????????????????????????????????????????? | | ??????????????????????????????????????????????? | | ??????????????????????????????????????????????? | | ??????????????????????????????????????????????? | +----------------------------------------------------+ Best States ------------- Heat Dissipation 28 Energy Generation 12 Energy Capacity 265 Matter Stores 300 Matter Capacity 300 Sight Range 18 Terrain Scan Density 10 ECM Strength 1 Armor Coverage 150 Evasion (%) 50 Recoil Reduction 2 Item Schematics ----------------- None Robot Schematics ------------------ None Fabricated ------------ Nothing Repaired ---------- Nothing Studied --------- None Alien Tech Used ----------------- None Achievements -------------- None Challenges ------------ None Game ------ Seed RestorationDefenseDoomcannon Manual? 0 Play Time 00:10:29 Cumulative 24.4 hours Start 2025.11.12 @ 15:42:59 End 2025.11.12 @ 16:21:12 Sessions 3 Manual Loads 0 Difficulty Rogue Special Mode None Game No. 39 Rogue 39 Adventurer 0 Explorer 0 Win Type - Total 1 Types 1/0/0/0/0/0/0/0/0/0 Lore% 13 Gallery% 27 Achievement% 19 Wizard Run 0 Options --------- Layout 1 ASCII 0 Keyboard 0 Movement Mouse Keybinds 0 Fullscreen 2 Font 24/Smallcaps Map View 50x35 Zoom Use 0% Tactical HUD 0 Map Filters NONE Filters NONE Steam 1 RUN: f1f21c2f-5e7e-417c-a4dd-85c67b16a547